bitfinex/quotes_BTCUSD_20251124
["timestamp","ask_amount","ask_price","bid_price","bid_amount"]
[1763964461524,0.00125443,87280.0,87279.0,0.04117]
[1763964463244,0.00125443,87280.0,87279.0,2.06408501]
[1763964463450,0.00125443,87280.0,87279.0,2.04117]
[1763964464051,0.00125443,87280.0,87279.0,2.05115]
[1763964464255,0.00125443,87280.0,87279.0,2.04117]
[1763964464873,0.00125443,87280.0,87279.0,0.04117]
[1763964465473,0.00125443,87280.0,87279.0,0.03817]
[1763964465832,0.00125443,87280.0,87279.0,0.04017]
[1763964466032,0.00011772,87305.0,87289.0,0.0131]
[1763964466033,0.59400427,87290.0,87289.0,0.0131]
[1763964466256,0.59400427,87299.0,87289.0,0.0131]
[1763964466454,0.59400427,87299.0,87289.0,0.0262]
[1763964466455,0.0003135,87290.0,87289.0,0.0262]
[1763964466660,0.0003135,87290.0,87289.0,0.0131]
[1763964466883,0.0003135,87290.0,87280.0,0.0131]
[1763964467139,0.59400427,87290.0,87280.0,0.0131]
[1763964467329,0.59400427,87290.0,87259.0,0.11637125]
[1763964467330,0.10905125,87289.0,87272.0,0.00852]
[1763964467534,0.323,87281.0,87272.0,0.00852]
[1763964468888,0.10905125,87290.0,87272.0,0.00852]
[1763964468889,0.323,87289.0,87280.0,0.0131]
[1763964469092,0.0316875,87288.0,87272.0,0.00852]
[1763964469310,0.324,87281.0,87272.0,0.00852]
[1763964469910,0.323,87281.0,87280.0,0.0131]
[1763964470207,0.323,87281.0,87280.0,0.0262]
[1763964470407,0.001,87281.0,87280.0,0.0262]
[1763964471091,0.001,87288.0,87280.0,0.0131]
[1763964471292,0.03170206,87287.0,87280.0,0.0131]
[1763964471514,0.03170206,87286.0,87280.0,0.0131]
[1763964471646,0.03170206,87285.0,87280.0,0.0131]
[1763964471848,0.001,87281.0,87280.0,0.0131]
[1763964472043,0.32274179,87289.0,87280.0,0.0131]
[1763964472251,0.0319639,87288.0,87280.0,0.0131]
[1763964472473,0.03271309,87287.0,87280.0,0.0131]
[1763964472669,0.00025081,87288.0,87272.0,0.00852]
[1763964472670,0.03171309,87286.0,87272.0,0.00852]
[1763964472847,0.59400427,87282.0,87272.0,0.00852]
[1763964473046,0.03271309,87281.0,87273.0,0.0131]
[1763964473250,0.03173194,87280.0,87274.0,0.02291633]
[1763964473493,0.59400427,87284.0,87272.0,0.00852]
[1763964473709,0.03173162,87283.0,87272.0,0.00852]
[1763964474044,0.03173162,87282.0,87272.0,0.00852]
[1763964474198,0.03173162,87281.0,87272.0,0.00852]
[1763964474395,0.323,87283.0,87272.0,0.00852]
[1763964474396,0.03173162,87280.0,87272.0,0.00852]
[1763964474660,0.03173162,87279.0,87272.0,0.00852]
[1763964474858,0.03173162,87278.0,87272.0,0.00852]
[1763964475083,0.323,87283.0,87272.0,0.00852]
[1763964475084,0.03173162,87277.0,87272.0,0.00852]
[1763964475291,0.03173162,87276.0,87272.0,0.00852]
[1763964475508,0.03173162,87275.0,87272.0,0.00852]
[1763964475644,0.03173162,87274.0,87272.0,0.00852]
[1763964475849,0.03173162,87273.0,87272.0,0.00852]
[1763964476074,0.03184934,87273.0,87272.0,0.00852]
[1763964476274,0.03184934,87273.0,87272.0,0.02162]
[1763964477067,0.03187617,87273.0,87272.0,0.03472]
[1763964477289,0.00011772,87273.0,87272.0,0.03472]
[1763964480892,0.00011772,87273.0,87272.0,0.05763685]
[1763964481703,0.00011772,87273.0,87272.0,0.03472]
[1763964482117,0.00011772,87273.0,87272.0,0.02162]
[1763964483180,0.00011772,87273.0,87272.0,0.00852]
[1763964483402,0.03188547,87273.0,87272.0,0.00852]
[1763964483810,0.18533594,87281.0,87272.0,0.00852]
[1763964483987,0.00077349,87281.0,87272.0,0.00852]
[1763964485255,0.00177349,87281.0,87272.0,0.00852]
[1763964485959,0.32477349,87281.0,87272.0,0.00852]
[1763964486167,0.324,87281.0,87272.0,0.00852]
[1763964486394,0.00077349,87280.0,87272.0,0.00852]
[1763964487864,0.00177349,87280.0,87272.0,0.00852]
[1763964488315,0.001,87280.0,87272.0,0.00852]
[1763964488539,0.00077349,87279.0,87272.0,0.00852]
[1763964490085,0.00177349,87280.0,87272.0,0.00852]
[1763964490320,0.00077349,87280.0,87272.0,0.00852]
[1763964490769,0.001,87279.0,87272.0,0.00852]
[1763964491112,0.00077349,87278.0,87272.0,0.00852]
[1763964491965,0.323,87281.0,87272.0,0.00852]
[1763964491966,0.001,87279.0,87272.0,0.00852]
[1763964492178,0.00077349,87278.0,87272.0,0.00852]
[1763964492579,0.00077349,87278.0,87240.0,0.12637124]
[1763964492580,0.02897,87273.0,87264.0,0.00894]
[1763964492796,0.35197,87273.0,87264.0,0.00905772]
[1763964492937,0.01606,87265.0,87264.0,0.00011772]
[1763964493327,0.36004,87273.0,87264.0,0.00011772]
[1763964493522,0.33906,87265.0,87264.0,0.00011772]
[1763964493940,0.36319,87265.0,87264.0,0.00011772]
[1763964495395,0.04019,87265.0,87264.0,0.00011772]
[1763964495548,0.5,87272.0,87264.0,0.00011772]
[1763964495762,0.00077349,87271.0,87264.0,0.00011772]
[1763964496604,2.33906,87265.0,87264.0,0.00011772]
[1763964497109,2.36319,87265.0,87264.0,0.00011772]
[1763964497472,2.59237695,87265.0,87264.0,0.00011772]
[1763964497648,2.39597918,87265.0,87264.0,0.00011772]
[1763964497850,2.39697918,87265.0,87264.0,0.00011772]
[1763964498051,2.39597918,87265.0,87264.0,0.00011772]
[1763964498252,2.37478642,87265.0,87264.0,0.00011772]
[1763964498453,2.37678642,87265.0,87264.0,0.00011772]
[1763964499227,2.36619,87265.0,87264.0,0.00011772]
[1763964503805,2.34206,87265.0,87264.0,0.00011772]
[1763964504107,2.01906,87265.0,87264.0,0.00011772]
[1763964504411,0.003,87265.0,87264.0,0.00011772]
[1763964504999,0.00377349,87265.0,87264.0,0.00011772]
[1763964505990,0.003,87265.0,87264.0,0.00011772]
[1763964506389,0.002,87265.0,87264.0,0.00011772]
[1763964506656,0.00077349,87272.0,87264.0,0.00011772]
[1763964506859,0.001,87265.0,87264.0,0.00011772]
[1763964507065,0.002,87265.0,87264.0,0.00011772]
[1763964507411,0.001,87265.0,87264.0,0.00011772]
[1763964508002,0.04119,87265.0,87264.0,0.00011772]
[1763964508199,2.36419,87265.0,87264.0,0.00011772]
[1763964508400,2.47941131,87265.0,87264.0,0.00011772]
[1763964508601,2.36419,87265.0,87264.0,0.00011772]
[1763964509226,2.36519,87265.0,87264.0,0.00011772]
[1763964512013,2.34106,87265.0,87264.0,0.00011772]
[1763964512214,0.002,87265.0,87264.0,0.00011772]
[1763964512814,0.01883349,87265.0,87264.0,0.00011772]
[1763964512982,0.04296349,87265.0,87264.0,0.00011772]
[1763964513167,0.00277349,87265.0,87264.0,0.00011772]
[1763964513557,0.002,87265.0,87264.0,0.00011772]
[1763964513977,0.002,87265.0,87264.0,0.01266772]
[1763964515587,0.002,87265.0,87264.0,0.02521772]
[1763964516109,0.002,87265.0,87264.0,0.00011772]
[1763964516324,0.002,87265.0,87264.0,0.01266772]
[1763964516766,0.00077349,87272.0,87264.0,0.01266772]
[1763964517327,0.323,87273.0,87264.0,0.01266772]
[1763964518360,0.8944106,87274.0,87264.0,0.00011772]
[1763964518556,2.02784,87265.0,87264.0,0.00011772]
[1763964518763,2.05327,87265.0,87264.0,0.00011772]
[1763964520386,2.37627,87265.0,87264.0,0.00011772]
[1763964521947,2.40907448,87265.0,87264.0,0.00011772]
[1763964522102,2.41007448,87265.0,87264.0,0.00011772]
[1763964522961,2.63926143,87265.0,87264.0,0.00011772]
[1763964523075,2.74852785,87265.0,87264.0,0.00011772]
[1763964523701,2.5193409,87265.0,87264.0,0.00011772]
[1763964524132,2.72409936,87265.0,87264.0,0.00011772]
[1763964524335,2.72309936,87265.0,87264.0,0.00011772]
[1763964524553,2.68687109,87265.0,87264.0,0.00011772]
[1763964524868,2.46168414,87265.0,87264.0,0.00011772]
[1763964525067,2.69087109,87265.0,87264.0,0.00011772]
[1763964525268,2.68987109,87265.0,87264.0,0.00011772]
[1763964525546,2.69187109,87265.0,87264.0,0.00011772]
[1763964525973,2.71628882,87265.0,87264.0,0.00011772]
[1763964526147,2.8070924,87265.0,87264.0,0.00011772]
[1763964526351,2.69187109,87265.0,87264.0,0.00011772]
[1763964527593,2.0,87251.0,87207.0,0.12244125]
[1763964527793,0.323,87229.0,87220.0,0.00808783]
[1763964529412,0.33781175,87229.0,87220.0,0.00808783]
[1763964529987,0.01481175,87229.0,87228.0,0.01339]
[1763964530193,0.323,87237.0,87228.0,0.01339]
[1763964530393,0.323,87237.0,87220.0,0.00808783]
[1763964530819,0.33795424,87237.0,87220.0,0.00808783]
[1763964531022,0.323,87229.0,87220.0,0.00808783]
[1763964532101,0.01495424,87237.0,87228.0,0.01339]
[1763964532304,0.01495424,87237.0,87221.0,0.01339]
[1763964532305,0.323,87239.0,87221.0,0.01339]
[1763964532824,0.323,87230.0,87221.0,0.01339]
[1763964534407,0.0157646,87237.0,87229.0,0.01339]
[1763964534549,0.0157646,87237.0,87236.0,0.01339]
[1763964534920,0.0157646,87237.0,87220.0,0.00808783]
[1763964535051,0.0147646,87237.0,87220.0,0.02147783]
[1763964535252,0.33576,87239.0,87221.0,0.01339]
[1763964536455,0.323,87239.0,87221.0,0.01339]
[1763964536689,0.323,87239.0,87222.0,0.02292999]
[1763964536856,0.33793732,87239.0,87222.0,0.02292999]
[1763964537053,0.33793732,87239.0,87223.0,0.01339]
[1763964537258,0.33793732,87239.0,87224.0,0.02292946]
[1763964537455,0.33793732,87239.0,87238.0,0.01339]
[1763964538061,0.01493732,87239.0,87238.0,0.01339]
[1763964538260,0.323,87247.0,87238.0,0.01339]
[1763964539244,0.33837371,87247.0,87220.0,0.00808783]
[1763964539413,0.323,87229.0,87220.0,0.02147783]
[1763964539817,0.323,87229.0,87228.0,0.01339]
[1763964540227,0.323,87229.0,87228.0,0.02678]
[1763964540437,0.8817406,87250.0,87228.0,0.01339]
[1763964540438,0.01276,87239.0,87228.0,0.01339]
[1763964540638,0.01637371,87247.0,87229.0,0.01203]
[1763964540942,0.01637371,87247.0,87220.0,0.00808783]
[1763964540943,0.02912,87229.0,87220.0,0.00011783]
[1763964541172,0.01146631,87212.0,87170.0,0.0002]
[1763964541321,0.323,87179.0,87153.0,0.0089385]
[1763964541522,0.01153,87181.0,87143.0,0.00418]
[1763964541523,0.323,87162.0,87143.0,0.00418]
[1763964541726,0.323,87162.0,87135.0,0.01147644]
[1763964541929,0.323,87162.0,87141.0,0.01147565]
[1763964542154,0.323,87162.0,87142.0,0.02295104]
[1763964542353,0.323,87162.0,87143.0,0.24098149]
[1763964542654,0.00359022,87170.0,87161.0,0.10905125]
[1763964542855,0.00359022,87170.0,87162.0,0.02294577]
[1763964543066,0.00359022,87170.0,87161.0,0.10905125]
[1763964543280,0.01276,87179.0,87162.0,0.00954]
[1763964543617,0.01376,87179.0,87162.0,0.00954]
[1763964543839,0.01276,87179.0,87162.0,0.00954]
[1763964544016,0.01276,87179.0,87162.0,0.01054]
[1763964544428,0.01276,87179.0,87162.0,0.00954]
[1763964544629,0.8928106,87200.0,87178.0,0.00954]
[1763964544835,0.8689806,87190.0,87178.0,0.00954]
[1763964545236,0.323,87189.0,87178.0,0.00954]
[1763964545755,0.323,87189.0,87178.0,0.00993295]
[1763964546972,0.323,87189.0,87178.0,0.01071813]
[1763964547169,0.323,87189.0,87178.0,0.00993295]
[1763964547971,0.323,87189.0,87178.0,0.00039295]
[1763964549491,0.01181,87194.0,87179.0,0.00954]
[1763964549838,0.323,87189.0,87178.0,0.00039295]
[1763964550879,0.323,87195.0,87188.0,0.00954]
[1763964551081,0.323,87195.0,87194.0,0.00954]
[1763964551285,0.10905125,87218.0,87194.0,0.00954]
[1763964551601,2.0,87224.0,87195.0,0.01908]
[1763964551810,0.01181,87225.0,87196.0,0.10905125]
[1763964551961,0.59362601,87230.0,87196.0,0.10905125]
[1763964551962,2.0,87229.0,87196.0,0.11859125]
[1763964552161,2.0,87227.0,87197.0,0.00954]
[1763964552362,0.323,87226.0,87197.0,0.00954]
[1763964552791,0.10905125,87228.0,87197.0,0.00954]
[1763964552970,0.59362601,87220.0,87197.0,0.00954]
[1763964553180,0.59362601,87220.0,87196.0,0.10905125]
[1763964553393,0.323,87219.0,87196.0,0.10905125]
[1763964553598,0.323,87219.0,87196.0,0.11859125]
[1763964554320,0.323,87229.0,87197.0,0.00954]
[1763964554539,0.43205125,87229.0,87197.0,0.00954]
[1763964555285,0.2739398,87229.0,87197.0,0.00954]
[1763964557155,0.2749398,87229.0,87197.0,0.00954]
[1763964557477,0.001,87229.0,87197.0,0.00954]
[1763964557714,0.001,87229.0,87210.0,0.10905125]
[1763964557917,0.001,87229.0,87211.0,0.00954]
[1763964558531,0.323,87235.0,87211.0,0.00954]
[1763964558772,0.001,87229.0,87211.0,0.00954]
[1763964559369,0.323,87229.0,87211.0,0.00954]
[1763964559802,0.323,87229.0,87228.0,0.00954]
[1763964559944,0.00111759,87235.0,87228.0,0.00954]
[1763964560145,0.00011759,87235.0,87234.0,0.00954]
[1763964560622,0.00011759,87235.0,87234.0,0.00854]
[1763964560839,0.00011759,87235.0,87234.0,0.01708]
[1763964562106,0.001,87235.0,87234.0,0.01708]
[1763964562528,0.0146332,87267.0,87234.0,0.01708]
[1763964562751,0.01475092,87267.0,87249.0,0.10905125]
[1763964562924,0.00011772,87267.0,87249.0,0.10905125]
[1763964563157,0.01442405,87267.0,87250.0,0.00854]
[1763964563989,0.01442405,87267.0,87250.0,0.01708]
[1763964564609,0.323,87259.0,87250.0,0.00854]
[1763964566043,0.323,87259.0,87250.0,0.00954]
[1763964567395,0.323,87259.0,87258.0,0.00854]
[1763964567674,0.01442405,87267.0,87258.0,0.00854]
[1763964567675,0.01442405,87267.0,87258.0,0.01708]
[1763964567833,0.01442405,87267.0,87259.0,0.00854]
[1763964570054,0.01442405,87267.0,87250.0,0.00854]
[1763964570055,0.01442405,87267.0,87266.0,0.00854]
[1763964570249,0.01442405,87267.0,87250.0,0.00854]
[1763964570250,0.01442405,87267.0,87251.0,0.00854]
[1763964570456,0.01442405,87267.0,87266.0,0.00854]
[1763964570676,0.01442405,87267.0,87266.0,0.00678]
[1763964570974,0.01442405,87267.0,87250.0,0.00854]
[1763964570975,0.03055405,87267.0,87250.0,0.00854]
[1763964571108,0.323,87259.0,87250.0,0.00854]
[1763964573164,0.323,87259.0,87250.0,0.00954]
[1763964573958,0.02681,87258.0,87250.0,0.001]
[1763964574133,0.01818,87251.0,87250.0,0.001]
[1763964574536,0.04499,87251.0,87250.0,0.001]
[1763964575540,0.01818,87251.0,87250.0,0.001]
[1763964575749,0.04499,87251.0,87220.0,0.02293052]
[1763964575941,0.04499,87251.0,87219.0,0.00678]
[1763964575942,0.323,87229.0,87219.0,0.00678]
[1763964577033,0.323,87229.0,87219.0,0.00689759]
[1763964577235,0.323,87229.0,87219.0,0.00889759]
[1763964579202,0.323,87229.0,87219.0,0.00989759]
[1763964580367,0.323,87229.0,87219.0,0.02521759]
[1763964580546,0.33675,87229.0,87219.0,0.00989759]
[1763964580710,0.323,87229.0,87228.0,0.01532]
[1763964582060,0.323,87237.0,87228.0,0.01632]
[1763964582266,0.323,87237.0,87228.0,0.01832]
[1763964583029,0.323,87237.0,87228.0,0.01632]
[1763964583450,0.323,87237.0,87228.0,0.01732]
[1763964584258,0.323,87237.0,87228.0,0.001]
[1763964585887,0.01799,87229.0,87228.0,0.001]
[1763964586743,0.01799,87229.0,87219.0,0.00689759]
[1763964587034,0.323,87228.0,87219.0,0.00689759]
[1763964587417,0.01277,87227.0,87219.0,0.00689759]
[1763964587621,0.01799,87220.0,87219.0,0.00011759]
[1763964588204,0.04422,87220.0,87219.0,0.00011759]
[1763964588671,2.36722,87220.0,87219.0,0.00211759]
[1763964588894,2.36722,87220.0,87219.0,0.00111759]
[1763964589262,2.36722,87220.0,87219.0,0.00211759]
[1763964589471,2.36722,87220.0,87219.0,0.00011759]
[1763964589811,2.36722,87220.0,87219.0,0.00111759]
[1763964591623,0.34099,87220.0,87219.0,0.00111759]
[1763964592020,0.323,87220.0,87219.0,0.00111759]
[1763964592236,0.323,87220.0,87219.0,0.01502759]
[1763964592439,0.59362601,87229.0,87219.0,0.01502759]
[1763964592970,0.323,87228.0,87219.0,0.01502759]
[1763964594473,0.323,87228.0,87219.0,0.01402759]
[1763964594922,0.323,87228.0,87219.0,0.01502759]
[1763964595664,0.323,87228.0,87219.0,0.01602759]
[1763964596065,0.323,87228.0,87219.0,0.00211759]
[1763964597547,0.323,87228.0,87227.0,0.00537]
[1763964597866,0.323,87237.0,87227.0,0.00537]
[1763964598066,0.323,87233.0,87221.0,0.00537]
[1763964598383,0.323,87228.0,87221.0,0.00537]
[1763964598716,0.323,87228.0,87227.0,0.001]
[1763964599020,2.323,87228.0,87227.0,0.001]
[1763964599189,2.34099,87228.0,87227.0,0.001]
[1763964599365,2.36210748,87228.0,87219.0,0.00011759]
[1763964599564,0.01799,87220.0,87219.0,0.00011759]
[1763964599898,0.323,87226.0,87221.0,0.001]
[1763964599899,2.02623,87226.0,87221.0,0.001]
[1763964600073,0.01799,87222.0,87221.0,0.001]
[1763964600450,0.5,87228.0,87221.0,0.002]
[1763964600636,2.0,87226.0,87221.0,0.002]
[1763964600833,0.01799,87222.0,87221.0,0.002]
[1763964601048,2.0,87221.0,87219.0,0.00011759]
[1763964601279,0.60639601,87229.0,87219.0,0.00011759]
[1763964601280,0.02112692,87220.0,87219.0,0.00011759]
[1763964601492,2.0,87228.0,87227.0,0.001]
[1763964601695,2.0,87227.0,87219.0,0.01813759]
[1763964601868,0.323,87229.0,87227.0,0.01802]
[1763964602392,0.323,87229.0,87221.0,0.001]
[1763964602614,0.323,87229.0,87219.0,0.00011759]
[1763964602818,0.323,87229.0,87219.0,0.00111759]
[1763964602956,0.323,87230.0,87219.0,0.00111759]
[1763964603192,0.323,87230.0,87219.0,0.02837759]
[1763964604223,0.323,87230.0,87229.0,0.0179]
[1763964604422,0.323,87238.0,87229.0,0.0179]
[1763964604622,0.02116455,87237.0,87230.0,0.0179]
[1763964604829,0.02116455,87236.0,87230.0,0.0179]
[1763964605029,0.02116455,87235.0,87231.0,0.00899]
[1763964605229,0.02116455,87234.0,87231.0,0.00899]
[1763964605464,0.323,87238.0,87231.0,0.00899]
[1763964605751,0.323,87236.0,87225.0,0.00899]
[1763964605910,0.323,87234.0,87225.0,0.00899]
[1763964606119,0.323,87234.0,87225.0,0.03659]
[1763964606436,0.323,87234.0,87233.0,0.0179]
[1763964607627,0.02592,87249.0,87233.0,0.0179]
[1763964607628,2.0,87240.0,87233.0,0.0179]
[1763964607830,0.323,87241.0,87233.0,0.0179]
[1763964608050,0.323,87239.0,87233.0,0.0179]
[1763964608869,0.323,87239.0,87233.0,0.0189]
[1763964609573,0.323,87242.0,87233.0,0.0179]
[1763964610545,0.323,87242.0,87226.0,0.0276]
[1763964611687,0.323,87242.0,87225.0,0.00899]
[1763964611688,0.323,87235.0,87225.0,0.00899]
[1763964611896,0.03159,87226.0,87219.0,0.00011759]
[1763964612281,0.35459,87226.0,87219.0,0.00011759]
[1763964613268,0.01799,87220.0,87219.0,0.00011759]
[1763964613782,2.36691,87220.0,87219.0,0.00011759]
[1763964614407,2.5962152,87220.0,87219.0,0.00011759]
[1763964614588,2.59735045,87220.0,87219.0,0.00011759]
[1763964614786,2.3959422,87220.0,87219.0,0.00211759]
[1763964614989,2.3959422,87220.0,87219.0,0.00111759]
[1763964615299,2.3959422,87220.0,87219.0,0.00211759]
[1763964615503,2.3700222,87220.0,87219.0,0.00211759]
[1763964615683,2.36691,87220.0,87219.0,0.00211759]
[1763964615892,2.36691,87220.0,87174.0,0.00537]
[1763964615893,0.01146657,87210.0,87174.0,0.00537]
[1763964616093,2.34099,87196.0,87169.0,0.00537]
[1763964616504,2.36691,87196.0,87169.0,0.00537]
[1763964616902,2.38803247,87196.0,87195.0,0.00125121]
[1763964617324,2.36691,87196.0,87195.0,0.00125121]
[1763964617531,2.36691,87196.0,87195.0,0.00025121]
[1763964621929,2.34099,87196.0,87195.0,0.00025121]
[1763964622762,0.00011763,87210.0,87195.0,0.01815121]
[1763964622763,0.0136,87209.0,87195.0,0.01815121]
[1763964622958,0.00011763,87210.0,87196.0,0.0276]
[1763964623165,0.323,87204.0,87196.0,0.0276]
[1763964623384,0.86988452,87210.0,87196.0,0.0276]
[1763964623385,0.00011763,87210.0,87209.0,0.02644]
[1763964623814,0.00011763,87210.0,87209.0,0.05404]
[1763964624237,0.00011763,87210.0,87209.0,0.02644]
[1763964624439,0.00011763,87210.0,87209.0,0.05404]
[1763964625132,0.00011763,87210.0,87209.0,0.05604]
[1763964625429,0.00011763,87210.0,87209.0,0.02844]
[1763964625624,0.00011763,87210.0,87209.0,0.05604]
[1763964625872,0.00011763,87210.0,87209.0,0.05704]
[1763964630028,0.00011763,87210.0,87209.0,0.05604]
[1763964630246,0.00011763,87210.0,87209.0,0.05404]
[1763964630441,0.00011763,87210.0,87209.0,0.05604]
[1763964630621,0.86976689,87250.0,87209.0,0.05604]
[1763964630622,0.323,87249.0,87234.0,0.01116]
[1763964630827,0.323,87249.0,87248.0,0.01116]
[1763964631257,0.323,87249.0,87248.0,0.02906]
[1763964631466,2.0,87257.0,87248.0,0.02906]
[1763964631615,2.0,87255.0,87248.0,0.02906]
[1763964631827,0.323,87254.0,87248.0,0.02906]
[1763964632042,0.323,87254.0,87234.0,0.01116]
[1763964632256,0.10905125,87257.0,87234.0,0.01116]
[1763964632257,0.323,87243.0,87234.0,0.01116]
[1763964632890,0.323,87243.0,87242.0,0.0179]
[1763964633421,0.323,87251.0,87248.0,0.001]
[1763964633601,0.323,87251.0,87242.0,0.0455]
[1763964633602,0.323,87251.0,87242.0,0.0276]
[1763964634221,0.323,87251.0,87234.0,0.01116]
[1763964634368,0.323,87243.0,87234.0,0.01116]
[1763964634792,0.01313,87242.0,87220.0,0.10905125]
[1763964635001,0.323,87229.0,87220.0,0.10905125]
[1763964635219,0.01313,87242.0,87221.0,0.02558]
[1763964635220,0.323,87239.0,87221.0,0.02558]
[1763964635424,0.323,87239.0,87228.0,0.01616]
[1763964636890,0.12518638,87239.0,87228.0,0.01716]
[1763964637015,0.86976689,87240.0,87228.0,0.01716]
[1763964638062,0.86976689,87238.0,87228.0,0.01616]
[1763964638261,0.86976689,87238.0,87219.0,0.01116]
[1763964638477,0.86976689,87230.0,87219.0,0.01116]
[1763964638871,0.86976689,87230.0,87220.0,0.02558]
[1763964639326,0.86976689,87230.0,87228.0,0.001]
[1763964639511,0.86976689,87238.0,87228.0,0.001]
[1763964639840,0.86976689,87238.0,87220.0,0.02558]
[1763964640014,0.03772,87242.0,87225.0,0.02558]
[1763964640015,0.86976689,87230.0,87225.0,0.02558]
[1763964640433,0.86976689,87230.0,87229.0,0.01616]
[1763964641211,0.323,87238.0,87229.0,0.01616]
[1763964641419,0.323,87238.0,87230.0,0.02558]
[1763964641673,0.323,87238.0,87237.0,0.01616]
[1763964642262,0.323,87246.0,87237.0,0.04174]
[1763964642409,0.323,87246.0,87219.0,0.01116]
[1763964642609,0.323,87246.0,87235.0,0.01116]
[1763964642856,0.323,87244.0,87237.0,0.001]
[1763964644249,0.323,87244.0,87235.0,0.01116]
[1763964645949,0.323,87244.0,87231.0,0.01116]
[1763964646154,0.34759,87244.0,87231.0,0.01116]
[1763964646346,0.323,87242.0,87231.0,0.01116]
[1763964646489,0.323,87242.0,87235.0,0.001]
[1763964646691,0.323,87242.0,87231.0,0.01116]
[1763964647582,0.323,87244.0,87241.0,0.01727]
[1763964647716,0.323,87244.0,87243.0,0.01727]
[1763964648764,0.323,87250.0,87243.0,0.01727]
[1763964648967,0.323,87250.0,87243.0,0.01827]
[1763964649137,0.323,87250.0,87243.0,0.001]
[1763964649369,0.323,87250.0,87243.0,0.002]
[1763964649698,0.323,87250.0,87243.0,0.001]
[1763964650104,2.0,87266.0,87249.0,0.01727]
[1763964650311,0.02688,87271.0,87250.0,0.01727]
[1763964650312,0.86976689,87253.0,87250.0,0.01727]
[1763964650511,1.19276689,87253.0,87252.0,0.01727]
[1763964651210,0.86976689,87262.0,87252.0,0.04281]
[1763964651662,0.86976689,87262.0,87253.0,0.02554]
[1763964651881,0.323,87261.0,87253.0,0.02554]
[1763964652328,0.323,87261.0,87252.0,0.001]
[1763964652550,0.01281,87260.0,87252.0,0.001]
[1763964653492,0.323,87261.0,87252.0,0.001]
[1763964653899,0.323,87261.0,87247.0,0.02554]
[1763964655857,0.01371356,87267.0,87260.0,0.02745]
[1763964656080,0.323,87278.0,87261.0,0.01727]
[1763964656287,0.323,87272.0,87261.0,0.01727]
[1763964656655,0.02113155,87271.0,87261.0,0.01727]
[1763964656884,0.323,87273.0,87261.0,0.01727]
[1763964657082,1.19276689,87271.0,87261.0,0.01727]
[1763964657552,1.20681788,87271.0,87261.0,0.01727]
[1763964657963,0.01405099,87271.0,87261.0,0.01727]
[1763964658135,0.01405099,87271.0,87262.0,0.02554]
[1763964658136,0.323,87270.0,87262.0,0.02554]
[1763964658546,0.323,87270.0,87269.0,0.01727]
[1763964658949,0.323,87270.0,87269.0,0.04281]
[1763964659112,0.00011781,87276.0,87269.0,0.04281]
[1763964659322,0.00011781,87276.0,87275.0,0.01727]
[1763964659538,0.01362312,87276.0,87275.0,0.01727]
[1763964659739,0.00011781,87276.0,87275.0,0.04281]
[1763964660171,0.00011781,87276.0,87275.0,0.01727]
[1763964660367,0.01409499,87276.0,87269.0,0.001]
[1763964660797,2.03041,87270.0,87230.0,0.00999999]
[1763964661048,2.03041,87270.0,87222.0,0.02554]
[1763964661049,0.323,87240.0,87222.0,0.02554]
[1763964661230,0.01281,87239.0,87220.0,0.02554]
[1763964661442,0.0176,87232.0,87217.0,0.00894]
[1763964661654,0.0176,87232.0,87185.0,0.00728]
[1763964661655,0.0125,87218.0,87200.0,0.02554]
[1763964661868,0.0125,87225.0,87204.0,0.0377]
[1763964661869,0.323,87213.0,87204.0,0.0377]
[1763964662080,0.323,87213.0,87204.0,0.03809295]
[1763964662526,0.323,87213.0,87212.0,0.01727]
[1763964662925,0.323,87221.0,87212.0,0.04281]
[1763964663133,0.323,87221.0,87213.0,0.13198361]
[1763964663333,0.323,87221.0,87220.0,0.02843]
[1763964663636,0.323,87221.0,87220.0,0.05397]
[1763964663877,0.323,87229.0,87220.0,0.05397]
[1763964664085,0.323,87229.0,87221.0,0.02663]
[1763964664276,0.323,87229.0,87228.0,0.01789]
[1763964665001,0.0122,87256.0,87228.0,0.01789]
[1763964665002,0.323,87237.0,87228.0,0.04452]
[1763964665288,0.323,87237.0,87229.0,0.01789]
[1763964665433,0.323,87237.0,87236.0,0.01789]
[1763964665817,0.323,87237.0,87236.0,0.04452]
[1763964666027,0.323,87245.0,87236.0,0.01789]
[1763964666576,0.32311774,87245.0,87229.0,0.02663]
[1763964666764,0.323,87238.0,87236.0,0.001]
[1763964667997,0.32311774,87245.0,87236.0,0.001]
[1763964668725,0.323,87243.0,87236.0,0.001]
[1763964668916,2.0,87244.0,87236.0,0.001]
[1763964668917,0.01687,87237.0,87236.0,0.001]
[1763964669750,2.36631,87237.0,87236.0,0.001]
[1763964670113,0.323,87234.0,87220.0,0.01116]
[1763964670338,0.323,87229.0,87220.0,0.01116]
[1763964672331,0.323,87229.0,87228.0,0.01789]
[1763964672883,0.323,87237.0,87221.0,0.02663]
[1763964673034,0.323,87235.0,87221.0,0.02663]
[1763964673935,0.323,87235.0,87234.0,0.01789]
[1763964674134,0.323,87239.0,87234.0,0.01789]
[1763964674322,0.59303896,87244.0,87239.0,0.01789]
[1763964674523,0.323,87243.0,87235.0,0.02663]
[1763964675315,0.323,87243.0,87242.0,0.02683]
[1763964675672,0.00011774,87245.0,87242.0,0.02683]
[1763964675890,0.00011774,87245.0,87244.0,0.01789]
[1763964676273,0.00011774,87245.0,87244.0,0.04452]
[1763964678257,0.59303896,87254.0,87242.0,0.00894]
[1763964678258,0.59303896,87254.0,87252.0,0.01789]